bitfinex/quotes_SOLUSD_20250216
["timestamp","ask_amount","ask_price","bid_price","bid_amount"]
[1739732156089,87.5862,189.17,189.13,7.73356109]
[1739732159306,87.5862,189.17,189.13,0.03]
[1739732160195,20.0,189.13,189.04,8.2985]
[1739732160373,8.49658561,189.12,189.04,7.70356109]
[1739732160577,7.70356109,189.05,188.97,16.00206109]
[1739732160793,0.79302452,189.04,188.99,7.70356109]
[1739732160971,0.79302452,189.05,189.01,7.70356109]
[1739732161176,5.2895,189.06,189.01,7.70356109]
[1739732161480,0.79302452,189.05,189.01,7.70356109]
[1739732161881,6.08192452,189.08,189.01,7.70356109]
[1739732162288,6.08192452,189.08,189.02,7.70356109]
[1739732162485,0.79302452,189.08,189.02,7.70356109]
[1739732163202,6.08172452,189.08,189.02,7.70356109]
[1739732163395,0.79302452,189.08,189.02,7.70356109]
[1739732164100,0.79302452,189.08,189.03,7.70356109]
[1739732164305,6.08172452,189.08,189.03,7.70356109]
[1739732165001,6.08172452,189.08,189.02,7.70356109]
[1739732166711,7.70356109,189.07,189.0,7.70356109]
[1739732166910,8.49658561,189.06,188.99,7.70356109]
[1739732168001,6.08232452,189.06,189.0,7.70356109]
[1739732168203,0.79302452,189.06,189.01,7.70356109]
[1739732168406,6.08202452,189.07,189.01,9.67365952]
[1739732168809,15.75568404,189.07,189.0,9.67365952]
[1739732169300,6.08202452,189.07,189.01,9.67365952]
[1739732170308,15.75568404,189.07,189.01,0.03]
[1739732171909,6.08202452,189.07,189.01,0.03]
[1739732172203,6.08202452,189.07,189.01,9.70365952]
[1739732173282,0.79302452,189.07,189.03,9.67365952]
[1739732173486,0.79302452,189.08,189.03,9.67365952]
[1739732173907,0.79302452,189.08,189.02,9.67365952]
[1739732174308,10.46668404,189.08,189.02,9.67365952]
[1739732174919,10.46668404,189.08,189.01,9.70365952]
[1739732175616,5.289,189.07,189.01,9.70365952]
[1739732175914,0.79302452,189.06,189.01,9.70365952]
[1739732176510,9.67365952,189.05,189.01,0.03]
[1739732176699,10.46668404,189.04,189.01,0.03]
[1739732177596,5.2901,189.03,189.01,0.03]
[1739732177808,0.79302452,189.05,189.01,0.03]
[1739732178110,6.08262452,189.05,189.01,0.03]
[1739732181598,15.75628404,189.05,189.01,0.03]
[1739732181907,6.08262452,189.05,189.01,0.03]
[1739732183116,9.67365952,189.03,189.01,0.03]
[1739732183418,0.79302452,189.02,189.01,0.03]
[1739732184410,6.08312452,189.03,189.01,0.03]
[1739732184721,15.75678404,189.03,189.01,0.03]
[1739732187023,9.67365952,189.02,189.01,0.03]
[1739732188520,14.96405952,189.02,189.01,0.03]
[1739732190326,5.2904,189.02,189.01,0.03]
[1739732192423,83.09302452,189.04,189.01,0.03]
[1739732192623,82.3,189.04,189.01,9.70365952]
[1739732192927,82.3,189.04,189.02,9.67365952]
[1739732194740,82.3,189.04,189.01,9.70365952]
[1739732194924,0.79302452,189.03,189.01,0.03]
[1739732196109,83.09302452,189.04,189.01,0.03]
[1739732196418,82.3,189.04,189.01,9.70365952]
[1739732197218,82.3,189.04,189.02,9.67365952]
[1739732199226,82.3,189.04,189.03,9.67365952]
[1739732202032,82.3,189.08,189.03,17.26025952]
[1739732202230,82.3,189.08,189.05,9.67365952]
[1739732202625,87.5889,189.08,189.04,9.67365952]
[1739732206725,82.3,189.08,189.04,9.67365952]
[1739732209616,87.5887,189.08,189.04,9.67365952]
[1739732210938,82.3,189.08,189.04,9.67365952]
[1739732211132,0.79302452,189.07,189.03,9.67365952]
[1739732211737,87.5889,189.08,189.04,9.67365952]
[1739732211935,0.79302452,189.07,189.04,9.67365952]
[1739732212317,6.08222452,189.07,189.04,9.67365952]
[1739732213046,5.2892,189.07,189.04,9.67365952]
[1739732213344,87.5888,189.08,189.04,9.67365952]
[1739732217333,0.79302452,189.07,189.02,9.67365952]
[1739732217640,0.79302452,189.07,189.01,9.70365952]
[1739732220240,0.79302452,189.05,189.01,0.03]
[1739732220536,5.2898,189.04,189.01,0.03]
[1739732223835,6.08322452,189.03,189.01,0.03]
[1739732224226,5.2902,189.03,189.01,0.03]
[1739732224647,5.2899,189.04,189.01,0.03]
[1739732224828,0.79302452,189.05,189.01,0.03]
[1739732225034,5.2896,189.05,189.02,9.67365952]
[1739732227727,82.3,189.06,189.04,9.67365952]
[1739732228526,82.3,189.06,189.03,9.67365952]
[1739732229854,82.3,189.06,189.04,9.67365952]
[1739732231451,87.5894,189.06,189.04,9.67365952]
[1739732232054,82.3,189.06,189.04,9.67365952]
[1739732233656,87.5893,189.06,189.04,9.67365952]
[1739732233832,82.3,189.06,189.04,9.67365952]
[1739732235031,87.5893,189.06,189.04,9.67365952]
[1739732235754,82.3,189.06,189.04,9.67365952]
[1739732235936,87.5893,189.06,189.04,9.67365952]
[1739732236545,82.3,189.06,189.04,9.67365952]
[1739732238736,82.3,189.06,189.05,9.67365952]
[1739732238935,87.5885,189.09,189.04,9.67365952]
[1739732239156,0.79302452,189.08,189.03,9.67365952]
[1739732240943,5.289,189.07,189.03,9.67365952]
[1739732242238,0.79302452,189.06,189.01,9.70365952]
[1739732242440,10.46668404,189.06,189.01,0.03]
[1739732243156,5.2896,189.05,189.01,0.03]
[1739732243358,5.2896,189.05,189.01,9.70365952]
[1739732243877,5.2893,189.06,189.02,9.67365952]
[1739732244438,5.2893,189.06,189.01,0.03]
[1739732244645,5.2888,189.08,189.05,9.67365952]
[1739732244873,5.2888,189.08,189.06,9.67365952]
[1739732245176,82.3,189.09,189.07,9.67365952]
[1739732247854,87.5885,189.09,189.06,9.67365952]
[1739732249277,87.5885,189.09,189.03,7.4869]
[1739732249278,0.063,189.1,189.07,9.67365952]
[1739732249474,0.063,189.1,189.09,9.67365952]
[1739732252771,0.063,189.1,189.09,61.78014613]
[1739732252957,0.063,189.1,189.09,74.55544613]
[1739732253575,0.063,189.1,189.09,75.55544613]
[1739732253777,87.5857,189.19,189.12,20.0]
[1739732254075,87.5857,189.19,189.17,9.67365952]
[1739732254269,87.5857,189.19,189.16,9.67365952]
[1739732255174,88.37872452,189.19,189.14,9.67365952]
[1739732255374,88.37872452,189.19,189.13,9.67365952]
[1739732255576,82.3,189.18,189.12,9.67365952]
[1739732255770,82.3,189.18,189.14,9.67365952]
[1739732256672,82.3,189.18,189.15,9.67365952]
[1739732257175,82.3,189.18,189.14,9.67365952]
[1739732257176,87.586,189.18,189.14,9.67365952]
[1739732257962,82.3,189.18,189.15,9.67365952]
[1739732258486,82.3,189.18,189.17,9.67365952]
[1739732258773,5.2849,189.22,189.17,9.67365952]
[1739732259079,87.5846,189.23,189.2,9.67365952]
[1739732259260,88.37762452,189.23,189.19,9.67365952]
[1739732259778,87.5846,189.23,189.2,9.67365952]
[1739732260157,82.3,189.23,189.21,9.67365952]
[1739732260565,87.5845,189.23,189.21,9.67365952]
[1739732265170,87.5845,189.23,189.2,9.67365952]
[1739732265800,82.3,189.23,189.22,9.67365952]
[1739732268178,5.2837,189.26,189.22,9.67365952]
[1739732268463,5.2837,189.26,189.24,9.67365952]
[1739732268672,84.3625,189.28,189.24,9.67365952]
[1739732268886,5.2834,189.27,189.24,9.67365952]
[1739732269782,5.2834,189.27,189.23,9.67365952]
[1739732269970,5.2834,189.27,189.22,9.67365952]
[1739732270170,0.79302452,189.26,189.22,9.67365952]
[1739732270371,6.07642452,189.27,189.22,9.67365952]
[1739732271078,5.2834,189.27,189.22,9.67365952]
[1739732272870,5.2834,189.27,189.23,9.67365952]
[1739732274868,0.063,189.29,189.26,9.67365952]
[1739732274869,5.346,189.29,189.26,9.67365952]
[1739732275365,0.063,189.29,189.28,9.67365952]
[1739732276286,0.063,189.29,189.27,9.67365952]
[1739732277492,0.063,189.29,189.28,9.67365952]
[1739732284575,0.063,189.29,189.28,23.08550805]
[1739732284906,0.063,189.29,189.28,29.16080604]
[1739732285410,0.063,189.29,189.28,28.36860805]
[1739732287280,0.063,189.29,189.28,23.08550805]
[1739732287479,0.063,189.29,189.28,9.67365952]
[1739732290511,0.063,189.29,189.27,9.67365952]
[1739732291614,0.063,189.29,189.28,9.67365952]
[1739732292610,0.85602452,189.34,189.33,9.5101]
[1739732292789,0.063,189.38,189.36,33.41184853]
[1739732292980,0.063,189.38,189.37,13.41184853]
[1739732293614,0.063,189.38,189.36,20.0]
[1739732293914,0.063,189.38,189.37,9.67365952]
[1739732296092,0.063,189.38,189.37,14.95425952]
[1739732298406,0.063,189.38,189.37,9.67365952]
[1739732301295,0.063,189.38,189.37,14.95425952]
[1739732302894,0.063,189.38,189.37,28.36610805]
[1739732303619,0.063,189.38,189.37,30.36610805]
[1739732303823,0.063,189.44,189.4,13.41184853]
[1739732304014,0.063,189.44,189.43,9.67365952]
[1739732304315,0.063,189.44,189.43,14.95255952]
[1739732306514,0.063,189.44,189.43,9.67365952]
[1739732309320,0.063,189.44,189.43,14.95255952]
[1739732310817,0.063,189.44,189.43,67.05904613]
[1739732311018,0.063,189.44,189.43,68.85059136]
[1739732311217,0.063,189.44,189.43,69.85059136]
[1739732312821,0.063,189.47,189.43,83.04799136]
[1739732313023,0.063,189.47,189.46,9.67365952]
[1739732320929,0.063,189.47,189.46,14.95175952]
[1739732325626,0.063,189.47,189.46,28.36360805]
[1739732325831,0.063,189.47,189.46,29.15504138]
[1739732327160,0.063,189.47,189.46,30.15504138]
[1739732327339,0.063,189.47,189.46,29.15504138]
[1739732328347,0.063,189.47,189.46,30.15504138]
[1739732328523,0.063,189.47,189.46,29.15504138]
[1739732328724,0.063,189.47,189.46,30.15504138]
[1739732329944,0.063,189.52,189.47,14.41184853]
[1739732330279,0.063,189.52,189.51,9.67365952]
[1739732331060,0.063,189.52,189.51,28.36220805]
[1739732331177,0.063,189.52,189.51,23.08550805]
[1739732331558,0.063,189.52,189.51,9.67365952]
[1739732334546,0.063,189.52,189.51,28.36220805]
[1739732338944,0.063,189.52,189.51,9.67365952]
[1739732347558,0.063,189.52,189.51,14.95035952]
[1739732350448,0.063,189.52,189.51,29.15346248]
[1739732350650,0.063,189.52,189.51,28.36220805]
[1739732350875,0.063,189.52,189.51,14.95035952]
[1739732351274,0.063,189.52,189.51,9.67365952]
[1739732352580,0.063,189.52,189.5,9.67365952]
[1739732353578,0.063,189.52,189.51,9.67365952]
[1739732355081,0.063,189.52,189.5,9.67365952]
[1739732356479,0.063,189.52,189.49,9.67365952]
[1739732358367,0.85602452,189.52,189.47,14.70365952]
[1739732358567,0.85602452,189.52,189.47,5.03]
[1739732359067,0.85602452,189.52,189.47,14.70365952]
[1739732359771,0.85602452,189.52,189.47,5.03]
[1739732360378,0.85602452,189.52,189.47,14.70365952]
[1739732360790,5.2767,189.51,189.47,14.70365952]
[1739732361100,0.79302452,189.5,189.47,14.70365952]
[1739732361276,0.79302452,189.5,189.47,5.03]
[1739732362385,5.2773,189.49,189.47,5.03]
[1739732362592,0.79302452,189.48,189.47,5.03]
[1739732362788,5.2773,189.49,189.47,5.03]
[1739732363291,0.79302452,189.48,189.47,5.03]
[1739732365593,6.07062452,189.48,189.47,5.03]
[1739732372079,1.996,189.47,189.38,9.67365952]
[1739732372296,9.67365952,189.45,189.38,9.67365952]
[1739732372499,0.79302452,189.44,189.38,9.67365952]
[1739732373285,10.46668404,189.44,189.37,9.70365952]
[1739732373484,82.3,189.43,189.37,9.70365952]
[1739732373684,5.2795,189.41,189.37,9.70365952]
[1739732373886,0.79302452,189.4,189.37,0.03]
[1739732375201,2.78902452,189.4,189.37,0.03]
[1739732375607,9.67365952,189.39,189.37,0.03]
[1739732375810,15.74698404,189.38,189.37,0.03]
[1739732377295,6.07332452,189.38,189.37,0.03]
[1739732381118,15.74698404,189.38,189.37,0.03]
[1739732381686,6.07332452,189.38,189.37,0.03]
[1739732383003,15.74698404,189.38,189.37,0.03]
[1739732388812,6.07332452,189.38,189.37,0.03]
[1739732400433,5.2803,189.38,189.37,9.70365952]
[1739732400638,5.28,189.4,189.37,9.70365952]
[1739732400932,5.28,189.4,189.38,9.67365952]
[1739732401426,5.28,189.4,189.37,0.03]
[1739732401729,10.46668404,189.39,189.37,0.03]
[1739732401927,9.67365952,189.38,189.37,0.03]
[1739732402825,14.95395952,189.38,189.37,0.03]
[1739732403927,14.95395952,189.38,189.37,0.0001]
[1739732404527,30.28730805,189.38,189.37,0.0001]
[1739732404830,32.08033257,189.38,189.37,0.0001]
[1739732406130,70.77497065,189.38,189.37,0.0001]
[1739732406321,70.77497065,189.38,189.25,0.03]
[1739732406322,9.67365952,189.3,189.25,0.03]
[1739732406522,0.79302452,189.29,189.25,0.03]
[1739732406824,6.07582452,189.29,189.25,0.03]
[1739732407733,28.95668404,189.29,189.25,0.03]
[1739732407936,9.67365952,189.26,189.25,0.03]
[1739732408731,15.75038404,189.26,189.25,0.03]
[1739732412625,13.41184853,189.24,189.18,0.03]
[1739732412827,9.67365952,189.21,189.18,0.03]
[1739732413122,0.79302452,189.2,189.18,0.03]
[1739732413329,5.2856,189.19,189.18,0.03]
[1739732416329,6.07842452,189.2,189.18,0.03]
[1739732416922,82.3,189.19,189.18,0.03]
[1739732418838,82.3,189.19,189.18,9.70365952]
[1739732419821,5.2846,189.23,189.18,14.98955952]
[1739732419822,82.3,189.23,189.18,14.98955952]
[1739732420025,82.3,189.23,189.22,9.67365952]
[1739732420228,83.09302452,189.28,189.22,9.67365952]
[1739732420438,82.3,189.27,189.25,9.67365952]
[1739732421049,9.67365952,189.31,189.21,1.9488]
[1739732421050,0.79302452,189.3,189.26,9.67365952]
[1739732421253,0.79302452,189.31,189.26,9.67365952]
[1739732421938,82.3,189.32,189.29,9.67365952]
[1739732422149,82.3,189.32,189.28,9.67365952]
[1739732422150,83.09302452,189.32,189.28,9.67365952]
[1739732422530,83.09302452,189.32,189.27,9.67365952]
[1739732422957,83.09302452,189.32,189.24,13.4918]
[1739732422958,9.67365952,189.3,189.24,17.88135952]
[1739732423248,0.79302452,189.29,189.24,8.2077]
[1739732423450,9.67365952,189.28,189.21,11.62245952]
[1739732423636,18.4872,189.32,189.19,8.2077]
[1739732423637,9.67365952,189.24,189.19,8.2077]
[1739732423950,5.2848,189.22,189.18,0.03]
[1739732424125,0.79302452,189.21,189.18,0.03]
[1739732424850,9.67365952,189.2,189.18,0.03]
[1739732425046,92.76668404,189.19,189.18,0.03]
[1739732425921,88.37862452,189.19,189.18,0.03]
[1739732426354,82.3,189.19,189.18,0.03]
[1739732426737,6.07782452,189.22,189.18,0.03]
[1739732427540,0.79302452,189.23,189.19,9.67365952]
[1739732427739,0.79302452,189.25,189.21,9.67365952]
[1739732427931,0.79302452,189.25,189.18,0.03]
[1739732427932,5.2839,189.26,189.23,9.67365952]
[1739732428330,0.79302452,189.27,189.23,9.67365952]
[1739732428331,6.07642452,189.27,189.23,9.67365952]
[1739732428533,0.79302452,189.27,189.23,9.67365952]
[1739732429351,6.07642452,189.27,189.21,9.67365952]
[1739732430159,15.75008404,189.27,189.2,9.67365952]
[1739732430337,9.67365952,189.26,189.19,9.67365952]
[1739732430534,0.79302452,189.25,189.19,9.67365952]
[1739732430837,0.79302452,189.25,189.18,0.03]
[1739732430838,0.79302452,189.25,189.2,15.08589759]
[1739732431031,15.87892211,189.25,189.18,15.11589759]
[1739732432232,15.87892211,189.25,189.19,15.08589759]
[1739732432464,5.2842,189.24,189.19,15.08589759]
[1739732432637,6.07722452,189.24,189.19,15.08589759]
[1739732432962,6.07642452,189.27,189.23,15.08589759]
[1739732433159,88.37622452,189.28,189.23,15.08589759]
[1739732433342,0.063,189.27,189.24,15.08589759]
[1739732433541,0.063,189.27,189.23,15.08589759]
[1739732434260,0.79302452,189.26,189.22,15.08589759]
[1739732434462,0.85602452,189.27,189.22,15.08589759]
[1739732434666,0.85602452,189.27,189.23,15.08589759]
[1739732435248,0.063,189.27,189.24,15.08589759]
[1739732435659,5.2837,189.26,189.23,15.08589759]
[1739732437056,0.79302452,189.25,189.21,15.08589759]
[1739732437737,83.09302452,189.25,189.2,15.08589759]
[1739732437939,83.09302452,189.25,189.19,15.08589759]
[1739732439256,5.2842,189.24,189.19,15.08589759]
[1739732439566,5.2842,189.24,189.2,15.08589759]
[1739732439862,82.3,189.25,189.23,15.08589759]
[1739732440041,5.2837,189.26,189.23,15.08589759]
[1739732440667,5.3465,189.27,189.23,15.08589759]
[1739732440961,0.063,189.27,189.26,15.08589759]
[1739732441466,0.063,189.27,189.25,15.08589759]
[1739732442167,0.063,189.27,189.26,15.08589759]
[1739732443877,0.063,189.27,189.25,15.08589759]
[1739732446471,0.063,189.27,189.24,15.08589759]
[1739732449577,0.063,189.27,189.26,15.08589759]
[1739732451471,0.063,189.27,189.25,15.08589759]
[1739732452270,0.063,189.27,189.26,15.08589759]
[1739732453343,0.063,189.27,189.26,20.36959759]
[1739732453574,0.063,189.27,189.26,48.86734371]
[1739732453783,0.063,189.27,189.26,49.86734371]
[1739732455069,0.063,189.27,189.26,50.65955473]
[1739732455765,82.3,189.36,189.28,1.0]
[1739732455968,83.09302452,189.4,189.35,15.08589759]
[1739732456171,5.2801,189.39,189.35,15.08589759]
[1739732462556,0.79302452,189.38,189.34,9.63931322]
[1739732462876,0.79302452,189.38,189.33,9.63931322]
[1739732463178,0.79302452,189.38,189.32,9.63931322]
[1739732463566,5.2806,189.37,189.32,9.63931322]
[1739732463769,0.79302452,189.36,189.32,9.63931322]
[1739732463963,82.3,189.36,189.32,9.63931322]
[1739732464949,5.2812,189.35,189.32,9.63931322]
[1739732469476,6.07482452,189.33,189.29,9.63931322]
[1739732469977,91.93931322,189.32,189.27,0.03]
[1739732470184,10.43233774,189.31,189.27,0.03]
[1739732470382,91.93931322,189.3,189.27,0.03]
[1739732470563,0.79302452,189.29,189.27,0.03]
[1739732471295,5.2831,189.28,189.27,0.03]
[1739732471780,14.92241322,189.28,189.27,0.03]
[1739732472686,20.36546437,189.28,189.27,0.03]
[1739732473990,21.88556437,189.28,189.27,0.03]
[1739732474306,21.88556437,189.28,189.27,0.0001]
[1739732478480,35.2974129,189.28,189.27,0.0001]
[1739732478896,36.2974129,189.28,189.27,0.0001]
[1739732480110,38.09043742,189.28,189.27,0.0001]
[1739732482991,53.17280179,189.28,189.27,0.0001]
[1739732484402,52.17280179,189.28,189.27,0.0001]
[1739732484608,53.17280179,189.28,189.27,0.0001]
[1739732484908,38.09043742,189.28,189.27,0.0001]
[1739732486603,53.17280179,189.28,189.27,0.0001]
[1739732487117,36.09043742,189.28,189.27,0.0001]
[1739732487704,37.09043742,189.28,189.27,0.0001]
[1739732488114,38.09043742,189.28,189.27,0.0001]
[1739732489295,53.17280179,189.28,189.27,0.0001]
[1739732490611,53.17280179,189.28,189.18,0.03]
[1739732490612,21.0,189.24,189.18,0.03]
[1739732490812,15.08236437,189.19,189.18,0.03]
[1739732491016,15.87538889,189.19,189.18,0.03]
[1739732491826,21.16098889,189.19,189.18,0.03]
[1739732492117,20.36796437,189.19,189.18,0.03]
[1739732492813,14.94702461,189.19,189.18,0.03]
[1739732494205,5.2856,189.19,189.18,0.03]
[1739732494407,5.2854,189.2,189.18,0.03]
[1739732494611,6.07802452,189.22,189.18,0.03]
[1739732496123,6.07802452,189.22,189.18,9.69142461]
[1739732496723,5.2842,189.24,189.21,9.66142461]
[1739732497419,5.2842,189.24,189.2,9.66142461]
[1739732497616,0.79302452,189.23,189.2,9.66142461]
[1739732498220,0.063,189.27,189.2,9.66142461]
[1739732498221,6.07702452,189.25,189.2,9.66142461]
[1739732501827,5.284,189.25,189.22,9.66142461]
[1739732502030,83.09302452,189.24,189.2,9.66142461]
[1739732502210,88.37742452,189.24,189.2,9.66142461]
[1739732502927,87.5844,189.24,189.2,9.66142461]
[1739732505525,82.3,189.24,189.22,9.66142461]
[1739732505830,82.3,189.24,189.23,9.66142461]
[1739732506020,0.063,189.27,189.23,9.66142461]
[1739732506226,0.063,189.27,189.26,9.66142461]
[1739732506404,0.063,189.27,189.26,15.70662461]
[1739732507705,0.063,189.27,189.26,20.99032461]
[1739732509530,0.063,189.27,189.26,34.40217314]
[1739732509732,0.063,189.27,189.26,73.04787158]
[1739732510232,0.063,189.27,189.26,34.40217314]
[1739732512431,0.063,189.27,189.26,20.99032461]
[1739732513033,0.063,189.27,189.26,73.04787158]
[1739732513528,0.063,189.27,189.26,20.99032461]
[1739732514237,0.063,189.27,189.26,73.04787158]
[1739732514408,0.063,189.27,189.26,73.8401991]
[1739732514930,0.063,189.27,189.26,73.04787158]
[1739732516334,0.063,189.27,189.26,20.99032461]
[1739732516636,0.063,189.27,189.26,15.70662461]
[1739732518145,0.063,189.27,189.26,20.99032461]
[1739732519130,0.063,189.27,189.26,73.04787158]
[1739732520112,0.063,189.27,189.26,34.40217314]
[1739732521143,0.063,189.27,189.26,20.99032461]
[1739732521349,0.063,189.27,189.26,15.70662461]
[1739732521512,0.063,189.27,189.26,15.73662461]
[1739732522647,0.063,189.27,189.26,21.14624513]
[1739732523432,0.063,189.27,189.26,15.10104513]
[1739732524445,0.063,189.27,189.26,0.03]
[1739732525048,0.85602452,189.27,189.26,0.03]
[1739732525222,15.92706965,189.27,189.26,0.03]
[1739732525724,0.85602452,189.27,189.26,0.03]
[1739732526241,0.063,189.27,189.26,0.03]
[1739732526451,5.3464,189.27,189.26,0.03]
[1739732528236,20.41744513,189.27,189.26,0.03]
[1739732530256,5.3464,189.27,189.26,0.03]
[1739732530848,0.063,189.27,189.26,0.03]
[1739732532339,0.85602452,189.27,189.26,0.03]
[1739732533453,5.3464,189.27,189.26,0.03]
[1739732534253,20.41744513,189.27,189.26,0.03]
[1739732535626,5.3464,189.27,189.26,0.03]
[1739732536953,20.41744513,189.27,189.26,0.03]
[1739732539559,21.95564513,189.27,189.26,0.03]
[1739732540932,21.95564513,189.27,189.26,0.0001]
[1739732543578,22.74866965,189.27,189.26,0.0001]
[1739732544781,16.53834093,189.27,189.26,0.0001]
[1739732552988,55.15330465,189.27,189.26,0.0001]
[1739732553173,68.56515318,189.27,189.26,0.0001]
[1739732553370,69.3581777,189.27,189.26,0.0001]
[1739732553689,70.3581777,189.27,189.26,0.0001]
[1739732554389,71.3581777,189.27,189.26,0.0001]
[1739732556591,69.3581777,189.27,189.26,0.0001]
[1739732557171,70.3581777,189.27,189.26,0.0001]
[1739732557891,69.3581777,189.27,189.26,0.0001]
[1739732558397,71.3581777,189.27,189.26,0.0001]
[1739732559291,20.0,189.23,189.18,0.03]
[1739732559589,9.65374093,189.19,189.18,0.03]
[1739732559784,14.93934093,189.19,189.18,0.03]
[1739732576406,5.2856,189.19,189.18,0.03]
[1739732576594,6.07862452,189.19,189.18,0.03]
[1739732577510,6.07842452,189.2,189.18,0.03]
[1739732578713,9.65374093,189.21,189.18,0.03]
[1739732578714,6.07812452,189.21,189.18,0.03]
[1739732579414,5.2849,189.22,189.18,0.03]
[1739732580610,10.44676545,189.21,189.18,0.03]
[1739732580814,9.65374093,189.2,189.18,0.03]
[1739732581017,0.79302452,189.19,189.18,0.03]
[1739732581202,10.44676545,189.19,189.18,0.03]
[1739732581617,10.44676545,189.19,189.13,6.4125]
[1739732581823,10.44676545,189.19,189.1,0.03]
[1739732581824,9.65374093,189.15,189.1,0.03]
[1739732582121,0.79302452,189.14,189.1,0.03]
[1739732582698,14.94104093,189.13,189.1,0.03]
[1739732583023,10.44676545,189.12,189.1,0.03]
[1739732583890,5.2879,189.11,189.1,0.03]
[1739732584714,0.79302452,189.12,189.1,0.03]
[1739732584934,0.79302452,189.13,189.1,0.03]
[1739732585324,15.73356545,189.15,189.1,0.03]
[1739732585622,82.3,189.13,189.1,0.03]
[1739732585921,82.3,189.13,189.1,9.68374093]
[1739732586420,0.79302452,189.15,189.1,9.68374093]
[1739732586621,82.3,189.18,189.1,9.68374093]
[1739732586622,0.79302452,189.17,189.13,9.65374093]
[1739732587005,0.79302452,189.17,189.12,9.65374093]
[1739732587206,9.65374093,189.16,189.1,0.03]
[1739732587426,0.79302452,189.15,189.1,0.03]
[1739732587725,10.44676545,189.15,189.1,0.03]
[1739732588033,9.65374093,189.14,189.1,0.03]
[1739732588233,0.79302452,189.13,189.1,0.03]
[1739732588614,87.5876,189.12,189.1,0.03]
[1739732588917,92.74676545,189.11,189.1,0.03]
[1739732589114,10.44676545,189.11,189.1,0.03]
[1739732590905,15.73466545,189.11,189.1,0.03]
[1739732592812,0.79302452,189.11,189.1,0.03]
[1739732593927,12.10936545,189.17,189.1,16.25794093]
[1739732594236,12.10936545,189.17,189.11,9.65374093]
[1739732594237,0.79302452,189.16,189.11,9.65374093]
[1739732594728,0.79302452,189.17,189.12,9.65374093]
[1739732595110,0.79302452,189.17,189.12,14.94134093]
[1739732595731,0.79302452,189.17,189.12,9.65374093]
[1739732596134,0.79302452,189.17,189.11,9.65374093]
[1739732597837,9.65374093,189.16,189.1,6.6042]
[1739732598149,10.44676545,189.15,189.1,6.6042]
[1739732599024,5.287,189.14,189.1,6.6042]
[1739732599225,0.79302452,189.13,189.1,6.6042]
[1739732600535,82.3,189.12,189.1,0.03]
[1739732600739,92.74676545,189.11,189.1,0.03]
[1739732601426,98.03466545,189.11,189.1,0.03]
[1739732602737,103.49197206,189.11,189.1,0.03]
[1739732602935,102.69894754,189.11,189.1,0.03]
[1739732604045,20.39894754,189.11,189.1,0.03]
[1739732607731,20.39894754,189.11,189.09,0.03]
[1739732607931,15.90407206,189.1,189.09,0.03]
[1739732609347,6.08122452,189.1,189.09,0.03]
[1739732610150,0.79302452,189.13,189.09,0.03]
[1739732610354,6.08042452,189.13,189.09,0.03]
[1739732610663,15.11104754,189.12,189.09,0.03]
[1739732610955,15.11104754,189.1,189.09,0.03]
[1739732611130,20.39924754,189.1,189.09,0.03]
[1739732617361,5.2882,189.1,189.09,0.03]
[1739732617539,5.2879,189.11,189.09,0.03]
[1739732619157,0.79302452,189.1,189.09,0.03]
[1739732620641,0.063,189.1,189.09,0.03]
[1739732623159,9.73154416,189.1,189.09,0.03]
[1739732623545,0.063,189.1,189.09,0.03]
[1739732624356,9.73154416,189.1,189.09,0.03]
[1739732624972,15.01974416,189.1,189.09,0.03]
[1739732625349,5.3512,189.1,189.09,0.03]
[1739732625646,6.14422452,189.1,189.09,0.03]
[1739732626570,5.3512,189.1,189.09,0.03]
[1739732629169,15.01974416,189.1,189.09,0.03]
[1739732629641,28.43159269,189.1,189.08,0.03]